Cogmind - Beta 11.1 @@@ ROGUE MODE // 2022.10.14 @ 00:58:51 Player: ampersand Result: Self-destructed Performance ------------- Evolutions (2) 1000 Regions Visited (4) 800 Robots Destroyed (61) 305 Value Destroyed (1054) 1054 Prototype IDs (1) 20 Alien Tech Used (0) 0 Bonus (12) 12 TOTAL SCORE: 3191 Bonus ------- High Alert Combat Kills 12 Cogmind --------- Core Integrity 161/550 Matter 300/300 Energy 100/100 System Corruption 0% Temperature Cool (0) Movement Core (50) Location -8/Materials Parts ------- > --- POWER (1) -------- (None) > --- PROPULSION (4) --- Flight Unit > --- UTILITY (4) ------ (None) > --- WEAPON (2) ------- Heavy Hammer > --- INVENTORY (5) ---- Improved Ion Engine Heavy Ion Engine Light Treads Beam Cannon Heavy Hammer Peak State ------------ > --- POWER ------------ Heavy Ion Engine > --- PROPULSION ------- Flight Unit Flight Unit Flight Unit Cesium-ion Thruster > --- UTILITY ---------- Small Storage Unit Improved Targeting Computer > --- WEAPON ----------- Heavy Hammer Heavy Hammer > --- INVENTORY -------- Improved Ion Engine Heavy Ion Engine Light Nuclear Core Beam Cannon Rocket Launcher Plasma Cutter Heavy Hammer Heavy Hammer [Rating: 17] Favorites ----------- Power Ion Engine Engine Ion Engine Propulsion Light Treads Treads Light Treads Wheel Compact Wheel Flight Unit Flight Unit Utility Small Storage Unit Device Improved Heat Sink Storage Small Storage Unit Processor Improved Targeting Computer Protection Light Armor Plating Weapon Heavy Hammer Energy Gun EM Pulse Gun Energy Cannon Beam Cannon Ballistic Gun Assault Rifle Launcher Grenade Launcher Special Weapon Plasma Cutter Impact Weapon Heavy Hammer Build | -11 -10 -10 -9 -8 ------- Run | Scr Mat Min Mat Mat Slots Evolved 4 | . . . 2 2 Power . | . . . . . Propulsion 2 | . . . 1 1 Utility 2 | . . . 1 1 Weapon . | . . . . . Parts Attached 50 | 6 8 12 16 8 Power 6 | . 1 1 3 1 Engine 6 | . 1 1 3 1 Core . | . . . . . Reactor . | . . . . . Propulsion 17 | 3 4 2 5 3 Treads 6 | . 2 2 2 . Leg . | . . . . . Wheel 5 | 3 2 . . . Hover . | . . . . . Flight 6 | . . . 3 3 Utility 7 | 1 1 3 2 . Device 2 | . . 2 . . Storage 2 | 1 . 1 . . Processor 2 | . 1 . 1 . Hackware . | . . . . . Protection 1 | . . . 1 . Artifact . | . . . . . Weapon 20 | 2 2 6 6 4 Energy Gun 4 | 2 . 2 . . Energy Cannon 1 | . . 1 . . Ballistic Gun 3 | . 1 2 . . Ballistic Cannon . | . . . . . Launcher 5 | . 1 1 2 1 Special Weapon 1 | . . . . 1 Impact Weapon 6 | . . . 4 2 Slashing Weapon . | . . . . . Piercing Weapon . | . . . . . Special Melee Weapon . | . . . . . Unidentified Prototypes 1 | . . . 1 . Parts Lost 21 | . 2 3 4 12 Power 3 | . . 1 . 2 Propulsion 8 | . . . 3 5 Utility 3 | . . . 1 2 Weapon 7 | . 2 2 . 3 Highest Loss Streak 8 | . 1 1 3 8 To Critical Strikes . | . . . . . Average Slot Usage (%) 86 | . 90 92 87 51 Engine 11 | . 10 13 10 6 Treads 18 | . 5 28 23 . Wheel 5 | . 22 . . . Flight 1 | . . . . 14 Device 3 | . . 7 3 . Storage 12 | . 14 14 11 3 Processor 5 | . 8 . 11 9 Protection 1 | . . . 4 . Energy Gun 7 | . 12 8 2 . Energy Cannon 3 | . . 5 2 . Ballistic Gun 5 | . 9 8 . . Launcher 3 | . 5 4 . . Impact Weapon 5 | . . . 16 16 Naked Turns . | . . . . . Heaviest Build 22 | 8 13 16 22 19 Greatest Support 63 | 32 40 40 63 17 Greatest Overweight (x) 6 | 1 . . 6 6 Average Overweight (x) . | . . . . 1 Largest Inventory Capacity 8 | 8 8 8 8 8 Average Capacity 7 | 7 8 8 8 6 Most Carried 8 | 7 8 8 8 8 Average Carried 7 | 4 7 7 7 6 Final Capacity 8 | 8 8 8 8 5 Final Carried 8 | 6 8 8 8 5 Class Distribution -------------------- 89% | Mutant 10% | Scavenger-Mutant Dominant Class ---------------- Mutant | -10/Materials Mutant | -10/Mines Mutant | -9/Materials Mutant | -8/Materials Resources | -11 -10 -10 -9 -8 ----------- Run | Scr Mat Min Mat Mat Matter Collected 1020 | 260 253 255 161 91 Remotely . | . . . . . Salvage Created 1724 | 78 315 419 433 479 Parts 94 | 2 28 20 27 17 Haulers Intercepted 1 | . 1 . . . Recyclers Shooed 5 | . 3 1 . 1 Parts Field Recycled . | . . . . . Retrieved Matter . | . . . . . Parts Self-Destructed . | . . . . . Prevented . | . . . . . Kills | -11 -10 -10 -9 -8 ------- Run | Scr Mat Min Mat Mat Combat Hostiles Destroyed 43 | . 7 9 16 11 Melee 8 | . . . 3 5 Guns 8 | . 5 3 . . Cannons 2 | . . 2 . . AOE 19 | . 2 4 10 3 Classes Destroyed 13 | 1 5 1 3 3 Worker 1 | . . 1 . . Builder 3 | . . . 2 1 Tunneler 1 | . 1 . . . Hauler 1 | . 1 . . . Recycler 9 | 1 2 1 2 3 Operator 1 | . . . 1 . Watcher 2 | . 1 . . 1 Swarmer 28 | . 6 3 12 7 Grunt 9 | . 1 6 2 . Brawler 1 | . . . . 1 Duelist 1 | . . . . 1 Sentry 3 | . . . 2 1 Hunter 1 | . . . . 1 Best Kill Streak 10 | 1 5 4 10 7 Combat Bots Only 9 | . 3 3 9 6 Max Kills in Single Turn 5 | 1 1 2 5 3 Gunslinging . | . . . . . Exploded 5 | . 1 2 5 3 Melee 1 | . . . 1 1 Uniques/NPCs Destroyed . | . . . . . Combat | -11 -10 -10 -9 -8 -------- Run | Scr Mat Min Mat Mat Damage Taken 2568 | . 335 578 744 911 Core 663 | . 97 37 140 389 Absorbed by Shields . | . . . . . Core Remaining (%) 70 | 100 . 46 65 . Volleys Fired 107 | 3 44 48 5 7 Largest 2 | 2 2 2 1 1 Hottest 100 | 80 80 100 33 33 Shots Fired 166 | 6 72 76 5 7 Gun 145 | 6 69 70 . . Cannon 4 | . . 4 . . Launcher 12 | . 3 2 5 2 Special 5 | . . . . 5 Kinetic 77 | . 26 51 . . Thermal 40 | 3 28 4 . 5 Explosive 12 | . 3 2 5 2 Electromagnetic 37 | 3 15 19 . . Robot Hit Streak 9 | 3 7 8 9 7 Robot Miss Streak 3 | 1 3 3 3 . Penetration Max . | . . . . . Secondary Targets 1 | . 1 . . . Max Gunslinging Chain 1 | . 1 . . . Shots Hit Robots 149 | 4 42 47 22 34 Core Hits 63 | 2 17 20 13 11 Critical Kills . | . . . . . Critical Parts Destroyed 9 | . . . 3 6 Critical Strikes 11 | . 1 . 3 7 Corrupt 1 | . 1 . . . Smash 10 | . . . 3 7 Melee Attacks 78 | . . . 36 42 Impact 78 | . . . 36 42 Slashing . | . . . . . Piercing . | . . . . . Sneak Attacks 12 | . . . 7 5 Combat Hostiles . | . . . . . Follow-up Attacks 16 | . . . 7 9 Damage Inflicted 4341 | 42 768 692 1485 1354 Guns 957 | 42 462 453 . . Cannons 71 | . . 71 . . Explosions 1107 | . 306 168 423 210 Melee 2154 | . . . 1062 1092 Ramming . | . . . . . Kinetic 505 | . 195 310 . . Thermal 438 | 30 202 154 . 52 Explosive 947 | . 229 85 423 210 Electromagnetic 297 | 12 142 143 . . Impact 2154 | . . . 1062 1092 Slashing . | . . . . . Piercing . | . . . . . Highest Corruption . | . . . . . Average Corruption . | . . . . . Corruption Purged . | . . . . . Corruption Blocked . | . . . . . Overload Shots . | . . . . . Overflow Damage 736 | . 9 8 383 336 Projectiles 5 | . . . . 5 Explosions 17 | . 9 8 . . Melee 714 | . . . 383 331 Knockbacks 9 | . . . 4 5 Impact 8 | . . . 4 4 Kinetic . | . . . . . Secondary 1 | . . . . 1 Self-Inflicted Damage 183 | . 77 28 78 . Shots 6 | . 3 1 2 . Rammed . | . . . . . Targets Rammed . | . . . . . Kicked . | . . . . . Crushed . | . . . . . Highest Temperature 162 | 9 162 18 . 4 Average Temperature 44 | 5 68 9 . 3 Received Heat Transfer 552 | . 18 252 102 180 Siege Activations . | . . . . . Robots Corrupted . | . . . . . Combat Hostiles . | . . . . . Parts Fried 23 | . . . 7 16 Impact Corruptions 35 | . . . 19 16 Robots Melted . | . . . . . Combat Hostiles . | . . . . . Parts Melted . | . . . . . Heat Transferred 858 | 75 350 248 . 185 Parts Sabotaged . | . . . . . Parts Stolen . | . . . . . Parts Stripped . | . . . . . Power Chain Reactions 3 | . 2 1 . . Missiles Intercepted . | . . . . . Alert | -11 -10 -10 -9 -8 ------- Run | Scr Mat Min Mat Mat Peak Influence 462 | 5 175 202 401 462 Initial 166 | . 3 12 9 166 Average 104 | 1 59 61 148 317 Maximum Alert Level 2 | . . 1 1 2 Low Security (%) 81 | 100 100 89 73 22 Level 1 14 | . . 10 26 43 Level 2 3 | . . . . 33 Level 3 . | . . . . . Level 4 . | . . . . . Level 5 . | . . . . . High Security . | . . . . . Max Security . | . . . . . Squads Dispatched 3 | . . . 1 2 Investigation . | . . . . . Extermination . | . . . . . Reinforcement 1 | . . . 1 . Assault . | . . . . . Garrison 2 | . . . . 2 Intercept . | . . . . . Searches Triggered . | . . . . . Construction Impeded . | . . . . . Haulers Reinforced . | . . . . . Active Scanning Responses . | . . . . . Cargo Convoy Interrupts . | . . . . . Stealth | -11 -10 -10 -9 -8 --------- Run | Scr Mat Min Mat Mat Distress Signals 4 | . . . 1 3 Communications Jammed . | . . . . . Distress Signals . | . . . . . Times Spotted 62 | . 16 10 20 16 Peak Tracking Total 8 | . 3 3 8 6 Tactical Retreats 2 | . 1 1 . . Traps | -11 -10 -10 -9 -8 ------- Run | Scr Mat Min Mat Mat Traps Triggered . | . . . . . Indirectly . | . . . . . Trap Hack Attempts . | . . . . . Triggered . | . . . . . Disarmed . | . . . . . Reprogrammed . | . . . . . Reused . | . . . . . Traps Extracted . | . . . . . Installed . | . . . . . Triggered . | . . . . . Machines | -11 -10 -10 -9 -8 ---------- Run | Scr Mat Min Mat Mat Machines Disabled 2 | . . . 2 . Max in Single Turn 1 | . . . 1 . Garrison Access 1 | . . . . 1 Machines Sabotaged . | . . . . . Garrisons Compromised . | . . . . . Overloaded Fab Kills . | . . . . . Hacking | -11 -10 -10 -9 -8 --------- Run | Scr Mat Min Mat Mat Machines Accessed 9 | . 5 . 3 1 Terminals 6 | . 4 . 2 . Fabricators . | . . . . . Repair Stations . | . . . . . Recycling Units 2 | . 1 . 1 . Scanalyzers . | . . . . . Garrison Access 1 | . . . . 1 Total Hacks 20 | . 11 . 8 1 Successful 13 | . 8 . 4 1 Failed 7 | . 3 . 4 . Catastrophic . | . . . . . Database Lockouts . | . . . . . Manual 11 | . 6 . 5 . Terminals 14 | . 9 . 5 . Fabricators . | . . . . . Repair Stations . | . . . . . Recycling Units 5 | . 2 . 3 . Scanalyzers . | . . . . . Garrison Access 1 | . . . . 1 Terminal Hacks 5 | . 4 . 1 . Branch Access Points 1 | . 1 . . . Alert Level 1 | . 1 . . . Unreport Threat 1 | . 1 . . . Locate Traps 1 | . . . 1 . Transport Status 1 | . 1 . . . Fabricator Hacks . | . . . . . Repair Station Hacks . | . . . . . Recycling Unit Hacks 3 | . 1 . 2 . Report Inventory 2 | . 1 . 1 . Retrieve Components 1 | . . . 1 . Scanalyzer . | . . . . . Garrison Access Hacks 1 | . . . . 1 Seal Access 1 | . . . . 1 Unauthorized Hacks 4 | . 3 . 1 . Terminals 4 | . 3 . 1 . Botnet 4 | . 3 . 1 . Fabricators . | . . . . . Repair Stations . | . . . . . Recycling Units . | . . . . . Scanalyzers . | . . . . . Garrison Access . | . . . . . Data Cores Recovered . | . . . . . Used . | . . . . . Hacking Detections 6 | . 3 . 3 . Full Trace Events . | . . . . . Feedback Events . | . . . . . Feedback Blocked . | . . . . . Robot Schematics Acquired . | . . . . . Robots Built . | . . . . . Authchips . | . . . . . Time . | . . . . . Total Robot Build Rating . | . . . . . Part Schematics Acquired . | . . . . . Parts Built . | . . . . . Authchips . | . . . . . Time . | . . . . . Total Part Build Rating . | . . . . . Parts Repaired . | . . . . . Time . | . . . . . Parts Recycled . | . . . . . Recycled Matter . | . . . . . Retrieved Matter . | . . . . . Retrieved Components 2 | . . . 2 . Parts Scanalyzed . | . . . . . Part Schematics Acquired . | . . . . . Parts Damaged . | . . . . . Bothacking | -11 -10 -10 -9 -8 ------------ Run | Scr Mat Min Mat Mat Used RIF Installer . | . . . . . Robots Hacked . | . . . . . Non-combat . | . . . . . Combat . | . . . . . Robot Hacks Applied . | . . . . . Relay Couplers Released . | . . . . . Fabnet Peak Effective % . | . . . . . Robots Rewired . | . . . . . Allies Hacked . | . . . . . Hacks Repelled . | . . . . . Allies | -11 -10 -10 -9 -8 -------- Run | Scr Mat Min Mat Mat Total Allies . | . . . . . Largest Group . | . . . . . Highest-Rated Group . | . . . . . Highest-Rated Ally . | . . . . . Total Orders . | . . . . . Ally Attacks . | . . . . . Total Damage . | . . . . . Kills . | . . . . . Allies Corrupted . | . . . . . Allies Melted . | . . . . . Intel | -11 -10 -10 -9 -8 ------- Run | Scr Mat Min Mat Mat Robot Analysis Total . | . . . . . Derelict Logs Recovered 2 | . . 2 . . Drone Launches . | . . . . . Drone Recoveries . | . . . . . Exploration | -11 -10 -10 -9 -8 ------------- Run | Scr Mat Min Mat Mat Turns Passed 2364 | 65 526 1018 511 244 Spaces Moved 1203 | 46 313 542 210 92 Core 68 | 18 . . 15 35 Treads 787 | . 55 542 190 . Legs . | . . . . . Wheels 286 | 28 258 . . . Hover . | . . . . . Flight 62 | . . . 5 57 Fastest Speed 29 | 50 100 160 114 29 Average Speed 143 | 83 110 160 174 121 Slowest Speed 360 | 100 160 160 360 350 Overloaded Moves . | . . . . . Propulsion Burnouts . | . . . . . Robots Hopped . | . . . . . Cave-ins Triggered 1 | . . . 1 . Exploration Rate (%) 37 | 4 58 99 20 8 Regions Visited 4 Branch Regions 1 Pre-discovered Areas . | . . . . . Known Exits Taken 2 | . 1 1 . . Unknown Exits Taken 2 | 1 . . 1 . Scrap Searched 1 | . . 1 . . Spaces Dug . | . . . . . Terrain Destroyed 116 | . 19 26 46 25 Melee . | . . . . . Projectile . | . . . . . AOE 116 | . 19 26 46 25 Terrain Rammed . | . . . . . Walls Destroyed . | . . . . . Machines Disabled . | . . . . . Actions | -11 -10 -10 -9 -8 --------- Run | Scr Mat Min Mat Mat Total 1553 | 65 424 620 295 149 Wait 77 | . 43 6 19 9 Move 1199 | 45 312 541 209 92 Hop . | . . . . . Pick Up 38 | 11 9 8 9 1 Fast Attach 13 | . 2 1 6 4 Attach 13 | 5 2 3 1 2 Detach . | . . . . . Swap 24 | 1 4 8 9 2 Drop 23 | . 8 5 10 . Fire 107 | 3 44 48 5 7 Melee 59 | . . . 27 32 Ram . | . . . . . Kick . | . . . . . Crush . | . . . . . Escape Stasis . | . . . . . Rewire . | . . . . . Trap . | . . . . . Miscellaneous . | . . . . . Route ------- -11/Scrapyard -10/Materials (discovered 3 exits: *Mat x2 / *Min) -10/Mines (discovered 2 exits: *Mat x2) -9/Materials (discovered 2 exits: *Mat / Sto) -8/Materials History --------- Turn | Location | Event 16 | -11/Scrapyard | Discovered new exit (range 16) 66 | -11/Scrapyard | Entered Materials 290 | -10/Materials | Discovered new exit (range 10) 315 | -10/Materials | Build established: Mutant 515 | -10/Materials | Discovered new exit (range 7) 534 | -10/Materials | Identified exit to Mines 592 | -10/Materials | Entered Mines 605 | -10/Mines | Discovered new exit (range 7) 673 | -10/Mines | Identified exit to Materials 885 | -10/Mines | Core integrity fell below 50% 1362 | -10/Mines | Received a Rocket Launcher from a helpful Derelict 1610 | -10/Mines | Entered Materials 1610 | -9/Materials | Evolved 2 slots: Propulsion x1, Utility x1 1611 | -9/Materials | Identified exit to Storage 2012 | -9/Materials | Crushed by falling debris 2036 | -9/Materials | Destroyed 9 combat bots 2036 | -9/Materials | Lost 3 parts (2n1u) 2037 | -9/Materials | Discovered new exit (range 16) 2121 | -9/Materials | Entered another Materials area 2121 | -8/Materials | Evolved 2 slots: Propulsion x1, Utility x1 2179 | -8/Materials | Garrison activated, responded to threat 2265 | -8/Materials | Lost 8 parts (1p4n1u2w) 2346 | -8/Materials | Core integrity fell below 50% 2365 | -8/Materials | Self-destructed Last Messages --------------- K-01 Serf collects debris. Sneak attack on R-06 Scavenger. Destroyed Tractor Beam. Destroyed Com. Wheel. R-06 Scavenger system corrupted by crushing effect. R-06 Scavenger system terminally corrupted. K-01 Serf collects debris. Acquired Flight Unit. Connecting with Garrison Access... Current location identified: Materials >>Seal Access door sealed. S-10 Pest destroyed. Hvy. Hammer follow-up attack on S-10 Pest. Lgt. Ion Engine destroyed. Hvy. Hammer follow-up attack on S-10 Pest. Flight Unit destroyed. Imp. Targeting Computer destroyed. K-01 Serf collects debris. Hvy. Hammer destroyed. Map ----- +----------------------------------------------------+ | ???????????????????????????????????????????? | | ???????????????????????????????????????????? | | ???????????????????????????????????????????? | | ???????????????????????????????????????????? | | ???????????????????????????????????????????? | | ???????????????????????????????????????????? | | ???????????????????????????????????????????? | | ???????????????????+#??????????????????????? | | ??????????????????? #??????????????????????? | | ??????????????????? #??????????????????????? | | ?????????????????## ##?????????????????????? | | ?????????????????# +?????????????????????? | | ?????????????????# #?????????????????????? | | ?????????????????# #?????????????????????? | | ?????????????????# #?????????????????????? | | ?????????????????# #?????????????????????? | | ?????????????????# #?????????????????????? | | ?????????????##### #?????????????????????? | | ?????????????# #?????????????????????? | | ?????????????# #####+###???????? ????? | | ?????????????# k####### ????? | | ?????????????##### Y ??????? | | ?????????????????# "" ???????? | | ?????????????????# ss* Y" ????????? | | ??????????????####s=%[ "" #?????????????? | | ??????????????#""" @""" u#?????????????? | | ??????????????#"G """ % #?????????????? | | ??????????????#""" """ #?????????????? | | ??????????????#### #?????????????? | | ???????########### #?????????????? | | ???????# #[%""" #?????????????? | | ???????# !#%%""" #####?????????? | | ???????# """""""%#%%""" ?????????? | | ???????# """""""*+%! ?????????? | | ???????# """"""" # ????????? | | ???????# """""""%# #### ########???????? | | ???????# """"""" # #??? #??????????????? | | ???????# # #??? #??????????????? | | ???????########### #??? +??????????????? | | ?????????????????# #??? #??????????????? | | ?????????????????# ##?? #??????????????? | | ?????????????????# ##?? #??????????????? | | ?????????????????##%###????????????????????? | | ????????????????? # #????????????????????? | | ????????????????? # #????????????????????? | | ????????????????? %# #????????????????????? | | ????????????????? ##????????????????????? | | ????????????????? =##?????????????????????? | | ?????????????????%* #??????????????????????? | | ??????????????????##???????????????????????? | +----------------------------------------------------+ Best States ------------- Heat Dissipation 42 Energy Generation 14 Energy Capacity 280 Matter Stores 300 Matter Capacity 300 Sight Range 16 Terrain Scan Density 10 Armor Coverage 150 Evasion (%) 50 Targeting Accuracy 6 Recoil Reduction 3 Item Schematics ----------------- None Robot Schematics ------------------ None Fabricated ------------ Nothing Alien Tech Used ----------------- None Achievements -------------- Quick And Dirty Challenges ------------ None Game ------ Seed HardenedSmartbombDoomcannon Manual? 0 Play Time 00:40:17 Cumulative 15.4 hours Start 2022.10.14 @ 00:14:22 End 2022.10.14 @ 00:58:51 Sessions 1 Manual Loads 0 Difficulty Rogue Special Mode None Game No. 13 Rogue 12 Adventurer 0 Explorer 1 Win Type - Total 0 Types 0/0/0/0/0/0/0/0/0 Lore% 19 Gallery% 24 Achievement% 21 Wizard Run 0 Options --------- ASCII 0 Keyboard 0 Movement Numpad Keybinds 0 Fullscreen 2 Font 16/Terminus Map View 75x55 Tactical HUD 0 Map Filters NONE Filters NONE Steam 1 RUN: f82fafc4-c080-42c0-95c8-f12afb5cdfbd